[Event "Titled Tuesday Blitz April 4 Early 2023"]
[White "Krsnik Cohar, Ivan Vihor"]
[Black "Alekseenko, Kirill"]
[WhiteFideId "14520044"]
[BlackFideId "4135539"]
[WhiteElo "2414"]
[BlackElo "2683"]
[Result "0-1"]
[Round "01"]
[TimeControl "180+2"]
[Date "2023.04.04"]
[WhiteClock "0:00:03"]
[BlackClock "0:00:06"]

1. e4 {[%clk 0:02:55]}  c5 {[%clk 0:02:58]} 2. Ne2 {[%clk 0:02:54]}  Nf6 {[%clk 0:02:53]} 3. d3 {[%clk 0:02:51]}  Nc6 {[%clk 0:02:49]} 4. Nbc3 {[%clk 0:02:47]}  d6 {[%clk 0:02:38]} 5. h3 {[%clk 0:02:38]}  g6 {[%clk 0:02:36]} 6. g3 {[%clk 0:02:39]}  Bg7 {[%clk 0:02:37]} 7. Bg2 {[%clk 0:02:39]}  Rb8 {[%clk 0:02:36]} 8. Be3 {[%clk 0:02:38]}  O-O {[%clk 0:02:34]} 9. O-O {[%clk 0:02:37]}  b5 {[%clk 0:02:33]} 10. f4 {[%clk 0:02:29]}  Bd7 {[%clk 0:02:24]} 11. d4 {[%clk 0:02:26]}  cxd4 {[%clk 0:02:22]} 12. Nxd4 {[%clk 0:02:25]}  b4 {[%clk 0:02:13]} 13. Nd5 {[%clk 0:02:06]}  Nxd5 {[%clk 0:02:02]} 14. exd5 {[%clk 0:02:05]}  Nxd4 {[%clk 0:02:01]} 15. Bxd4 {[%clk 0:02:05]}  Bxd4+ {[%clk 0:02:02]} 16. Qxd4 {[%clk 0:02:05]}  Qb6 {[%clk 0:02:02]} 17. Qxb6 {[%clk 0:01:44]}  Rxb6 {[%clk 0:02:03]} 18. a3 {[%clk 0:01:13]}  Rc8 {[%clk 0:01:35]} 19. axb4 {[%clk 0:01:10]}  Rxc2 {[%clk 0:01:34]} 20. Rxa7 {[%clk 0:01:08]}  Bf5 {[%clk 0:01:29]} 21. Rxe7 {[%clk 0:00:54]}  Rxb4 {[%clk 0:01:28]} 22. Rf2 {[%clk 0:00:51]}  Rxf2 {[%clk 0:01:26]} 23. Kxf2 {[%clk 0:00:51]}  Rxb2+ {[%clk 0:01:27]} 24. Kg1 {[%clk 0:00:49]}  h5 {[%clk 0:01:24]} 25. Ra7 {[%clk 0:00:30]}  Rb6 {[%clk 0:01:15]} 26. Rc7 {[%clk 0:00:30]}  Kf8 {[%clk 0:01:12]} 27. Kf2 {[%clk 0:00:21]}  Rb2+ {[%clk 0:01:11]} 28. Kg1 {[%clk 0:00:21]}  Ke8 {[%clk 0:01:06]} 29. Rc6 {[%clk 0:00:19]}  Ke7 {[%clk 0:01:00]} 30. Rc7+ {[%clk 0:00:19]}  Bd7 {[%clk 0:00:58]} 31. g4 {[%clk 0:00:14]}  h4 {[%clk 0:00:55]} 32. Ra7 {[%clk 0:00:09]}  f5 {[%clk 0:00:31]} 33. gxf5 {[%clk 0:00:07]}  gxf5 {[%clk 0:00:32]} 34. Ra1 {[%clk 0:00:02]}  Rb4 {[%clk 0:00:32]} 35. Re1+ {[%clk 0:00:03]}  Kf6 {[%clk 0:00:32]} 36. Rf1 {[%clk 0:00:03]}  Bb5 {[%clk 0:00:32]} 37. Rf2 {[%clk 0:00:04]}  Rb1+ {[%clk 0:00:29]} 38. Kh2 {[%clk 0:00:04]}  Rc1 {[%clk 0:00:26]} 39. Rf3 {[%clk 0:00:03]}  Rc2 {[%clk 0:00:23]} 40. Kg1 {[%clk 0:00:03]}  Re2 {[%clk 0:00:19]} 41. Rf2 {[%clk 0:00:03]}  Re3 {[%clk 0:00:18]} 42. Rf3 {[%clk 0:00:03]}  Re1+ {[%clk 0:00:17]} 43. Kf2 {[%clk 0:00:03]}  Re2+ {[%clk 0:00:17]} 44. Kg1 {[%clk 0:00:03]}  Bc4 {[%clk 0:00:17]} 45. Bf1 {[%clk 0:00:03]}  Rc2 {[%clk 0:00:17]} 46. Bxc4 {[%clk 0:00:03]}  Rxc4 {[%clk 0:00:18]} 47. Re3 {[%clk 0:00:04]}  Rxf4 {[%clk 0:00:16]} 48. Re6+ {[%clk 0:00:05]}  Kg5 {[%clk 0:00:16]} 49. Rxd6 {[%clk 0:00:06]}  Rd4 {[%clk 0:00:17]} 50. Rd8 {[%clk 0:00:06]}  Kf4 {[%clk 0:00:16]} 51. d6 {[%clk 0:00:06]}  Kf3 {[%clk 0:00:17]} 52. d7 {[%clk 0:00:05]}  f4 {[%clk 0:00:17]} 53. Rh8 {[%clk 0:00:02]}  Rxd7 {[%clk 0:00:10]} 54. Rxh4 {[%clk 0:00:02]}  Rd1+ {[%clk 0:00:11]} 55. Kh2 {[%clk 0:00:02]}  Ke3 {[%clk 0:00:10]} 56. Rh8 {[%clk 0:00:02]}  f3 {[%clk 0:00:11]} 57. Re8+ {[%clk 0:00:02]}  Kf2 {[%clk 0:00:12]} 58. Rf8 {[%clk 0:00:02]}  Rd4 {[%clk 0:00:11]} 59. Rf7 {[%clk 0:00:02]}  Ra4 {[%clk 0:00:10]} 60. Rf8 {[%clk 0:00:02]}  Rb4 {[%clk 0:00:10]} 61. Rf7 {[%clk 0:00:02]}  Rh4 {[%clk 0:00:11]} 62. Rf8 {[%clk 0:00:02]}  Rh6 {[%clk 0:00:10]} 63. Rf7 {[%clk 0:00:03]}  Re6 {[%clk 0:00:08]} 64. Rf8 {[%clk 0:00:03]}  Ke2 {[%clk 0:00:09]} 65. Kg3 {[%clk 0:00:02]}  Rg6+ {[%clk 0:00:09]} 66. Kh2 {[%clk 0:00:03]}  f2 {[%clk 0:00:09]} 67. Re8+ {[%clk 0:00:03]}  Kf1 {[%clk 0:00:10]} 68. h4 {[%clk 0:00:03]}  Rg2+ {[%clk 0:00:08]} 69. Kh3 {[%clk 0:00:04]}  Kg1 {[%clk 0:00:07]} 70. Rf8 {[%clk 0:00:02]}  f1=Q {[%clk 0:00:05]} 71. Rxf1+ {[%clk 0:00:03]}  Kxf1 {[%clk 0:00:05]} 72. h5 {[%clk 0:00:04]}  Kf2 {[%clk 0:00:06]} 73. h6 {[%clk 0:00:03]}  Rg6 {[%clk 0:00:06]} 74. Kh4 {[%clk 0:00:03]}  Rxh6+ {[%clk 0:00:06]} 0-1


[Site "https://www.chess.com"]

[Event "Titled Tuesday Blitz April 4 Early 2023"]
[White "Ljukin, Sergei"]
[Black "Movahed, Sina"]
[WhiteFideId "14102200"]
[BlackFideId "42520835"]
[WhiteElo "2312"]
[BlackElo "2225"]
[Result "0-1"]
[Round "01"]
[TimeControl "180+2"]
[Date "2023.04.04"]
[WhiteClock "0:00:01"]
[BlackClock "0:00:08"]

1. e4 {[%clk 0:02:58]}  c5 {[%clk 0:02:59]} 2. Nf3 {[%clk 0:02:57]}  d6 {[%clk 0:02:59]} 3. d4 {[%clk 0:02:58]}  cxd4 {[%clk 0:03:00]} 4. Nxd4 {[%clk 0:02:58]}  Nf6 {[%clk 0:03:00]} 5. Nc3 {[%clk 0:02:59]}  a6 {[%clk 0:03:01]} 6. Bg5 {[%clk 0:02:59]}  e6 {[%clk 0:03:01]} 7. f4 {[%clk 0:02:59]}  Be7 {[%clk 0:03:00]} 8. Qf3 {[%clk 0:03:00]}  Qc7 {[%clk 0:03:01]} 9. O-O-O {[%clk 0:03:00]}  Nbd7 {[%clk 0:03:00]} 10. g4 {[%clk 0:02:59]}  b5 {[%clk 0:03:01]} 11. Bxf6 {[%clk 0:03:00]}  Nxf6 {[%clk 0:03:01]} 12. g5 {[%clk 0:03:00]}  Nd7 {[%clk 0:03:02]} 13. f5 {[%clk 0:03:01]}  O-O {[%clk 0:03:02]} 14. Rg1 {[%clk 0:02:50]}  b4 {[%clk 0:03:01]} 15. Nce2 {[%clk 0:02:43]}  e5 {[%clk 0:03:00]} 16. f6 {[%clk 0:02:37]}  exd4 {[%clk 0:02:59]} 17. fxe7 {[%clk 0:02:37]}  Re8 {[%clk 0:03:00]} 18. Nxd4 {[%clk 0:02:35]}  Ne5 {[%clk 0:02:57]} 19. Qg3 {[%clk 0:02:29]}  Rxe7 {[%clk 0:02:42]} 20. Nf5 {[%clk 0:02:24]}  Bxf5 {[%clk 0:02:28]} 21. exf5 {[%clk 0:02:24]}  Rc8 {[%clk 0:02:25]} 22. Rg2 {[%clk 0:02:18]}  Qc5 {[%clk 0:02:03]} 23. Rgd2 {[%clk 0:01:55]}  Rec7 {[%clk 0:01:56]} 24. Kb1 {[%clk 0:01:47]}  a5 {[%clk 0:01:55]} 25. Qg2 {[%clk 0:01:34]}  Rc6 {[%clk 0:01:41]} 26. Qe2 {[%clk 0:01:18]}  Kf8 {[%clk 0:01:25]} 27. Bg2 {[%clk 0:01:14]}  R6c7 {[%clk 0:01:17]} 28. f6 {[%clk 0:01:07]}  Nc4 {[%clk 0:01:05]} 29. Rd5 {[%clk 0:00:59]}  Qe3 {[%clk 0:01:02]} 30. Re1 {[%clk 0:00:14]}  Qf4 {[%clk 0:00:47]} 31. Qd3 {[%clk 0:00:07]}  g6 {[%clk 0:00:33]} 32. Re4 {[%clk 0:00:03]}  Qxh2 {[%clk 0:00:29]} 33. Rxc4 {[%clk 0:00:02]}  Rxc4 {[%clk 0:00:24]} 34. Rxd6 {[%clk 0:00:03]}  Re8 {[%clk 0:00:14]} 35. Rd8 {[%clk 0:00:02]}  Qe5 {[%clk 0:00:13]} 36. b3 {[%clk 0:00:01]}  Rc8 {[%clk 0:00:11]} 37. Rd7 {[%clk 0:00:01]}  Qxg5 {[%clk 0:00:08]} 0-1


[Site "https://www.chess.com"]

[Event "Titled Tuesday Blitz April 4 Early 2023"]
[White "Lenderman, Aleksandr"]
[Black "Goffredo_Fofi"]
[WhiteFideId "2021285"]
[WhiteElo "2607"]
[BlackElo "2506"]
[Result "1-0"]
[Round "01"]
[TimeControl "180+2"]
[Date "2023.04.04"]
[WhiteClock "0:02:03"]
[BlackClock "0:01:14"]

1. Nf3 {[%clk 0:02:59]}  Nf6 {[%clk 0:03:00]} 2. c4 {[%clk 0:02:57]}  g6 {[%clk 0:03:01]} 3. g3 {[%clk 0:02:56]}  Bg7 {[%clk 0:03:02]} 4. Bg2 {[%clk 0:02:56]}  O-O {[%clk 0:03:03]} 5. O-O {[%clk 0:02:57]}  d6 {[%clk 0:03:03]} 6. d4 {[%clk 0:02:56]}  Nc6 {[%clk 0:03:04]} 7. Nc3 {[%clk 0:02:54]}  a6 {[%clk 0:03:04]} 8. b3 {[%clk 0:02:50]}  Rb8 {[%clk 0:03:04]} 9. d5 {[%clk 0:02:47]}  Na5 {[%clk 0:03:04]} 10. Bg5 {[%clk 0:02:46]}  b5 {[%clk 0:03:01]} 11. cxb5 {[%clk 0:02:42]}  axb5 {[%clk 0:03:00]} 12. b4 {[%clk 0:02:41]}  Nc4 {[%clk 0:02:59]} 13. Nd4 {[%clk 0:02:41]}  Bd7 {[%clk 0:02:56]} 14. Rc1 {[%clk 0:02:39]}  Qe8 {[%clk 0:02:13]} 15. Nc6 {[%clk 0:02:33]}  Bxc6 {[%clk 0:02:13]} 16. dxc6 {[%clk 0:02:34]}  Ne5 {[%clk 0:02:02]} 17. Bxf6 {[%clk 0:02:31]}  exf6 {[%clk 0:01:56]} 18. Nd5 {[%clk 0:02:32]}  Qd8 {[%clk 0:01:57]} 19. a4 {[%clk 0:02:27]}  bxa4 {[%clk 0:01:56]} 20. Qxa4 {[%clk 0:02:28]}  f5 {[%clk 0:01:35]} 21. b5 {[%clk 0:02:26]}  Rc8 {[%clk 0:01:22]} 22. b6 {[%clk 0:02:02]}  cxb6 {[%clk 0:01:22]} 23. c7 {[%clk 0:02:03]}  Qd7 {[%clk 0:01:14]} 24. Qxd7 {[%clk 0:02:01]}  Nxd7 {[%clk 0:01:14]} 25. Ne7+ {[%clk 0:02:02]}  Kh8 {[%clk 0:01:14]} 26. Nxc8 {[%clk 0:02:03]}  Rxc8 {[%clk 0:01:14]} 27. Bb7 {[%clk 0:02:03]} 1-0


[Site "https://www.chess.com"]

[Event "Titled Tuesday Blitz April 4 Early 2023"]
[White "Yu, Jason"]
[Black "Rasulov, Vugar"]
[WhiteFideId "30907624"]
[BlackFideId "13402390"]
[WhiteElo "2501"]
[BlackElo "2509"]
[Result "0-1"]
[Round "01"]
[TimeControl "180+2"]
[Date "2023.04.04"]
[WhiteClock "0:00:49"]
[BlackClock "0:01:49"]

1. e4 {[%clk 0:03:00]}  e5 {[%clk 0:02:59]} 2. Nf3 {[%clk 0:03:01]}  Nc6 {[%clk 0:03:00]} 3. Bc4 {[%clk 0:03:01]}  Bc5 {[%clk 0:02:59]} 4. c3 {[%clk 0:03:01]}  Nf6 {[%clk 0:02:59]} 5. d4 {[%clk 0:03:01]}  exd4 {[%clk 0:02:59]} 6. cxd4 {[%clk 0:03:02]}  Bb4+ {[%clk 0:02:59]} 7. Bd2 {[%clk 0:03:02]}  Bxd2+ {[%clk 0:02:58]} 8. Nbxd2 {[%clk 0:03:03]}  d5 {[%clk 0:02:58]} 9. exd5 {[%clk 0:03:04]}  Nxd5 {[%clk 0:02:59]} 10. O-O {[%clk 0:03:05]}  O-O {[%clk 0:02:58]} 11. Rc1 {[%clk 0:03:05]}  Nb6 {[%clk 0:02:54]} 12. Bb3 {[%clk 0:03:05]}  Bg4 {[%clk 0:02:49]} 13. h3 {[%clk 0:03:02]}  Bh5 {[%clk 0:02:49]} 14. Rc5 {[%clk 0:02:27]}  Bg6 {[%clk 0:02:41]} 15. Re1 {[%clk 0:02:27]}  a5 {[%clk 0:02:38]} 16. a3 {[%clk 0:02:19]}  a4 {[%clk 0:02:37]} 17. Ba2 {[%clk 0:02:03]}  Nxd4 {[%clk 0:02:30]} 18. Ne5 {[%clk 0:01:10]}  c6 {[%clk 0:02:14]} 19. Nxg6 {[%clk 0:01:07]}  hxg6 {[%clk 0:02:15]} 20. Qg4 {[%clk 0:01:00]}  Nd7 {[%clk 0:01:58]} 21. Rc4 {[%clk 0:00:53]}  c5 {[%clk 0:01:55]} 22. Ne4 {[%clk 0:00:49]}  Ne5 {[%clk 0:01:49]} 0-1


[Site "https://www.chess.com"]

[Event "Titled Tuesday Blitz April 4 Early 2023"]
[White "Jaskolka, Tomasz"]
[Black "Gurel, Ediz"]
[WhiteFideId "1170791"]
[BlackFideId "44507356"]
[WhiteElo "2155"]
[BlackElo "2352"]
[Result "0-1"]
[Round "01"]
[TimeControl "180+2"]
[Date "2023.04.04"]
[WhiteClock "0:01:00"]
[BlackClock "0:01:34"]

1. d4 {[%clk 0:03:00]}  Nf6 {[%clk 0:02:57]} 2. Nc3 {[%clk 0:02:59]}  d5 {[%clk 0:02:56]} 3. Bf4 {[%clk 0:02:59]}  c6 {[%clk 0:02:56]} 4. e3 {[%clk 0:02:55]}  Bf5 {[%clk 0:02:55]} 5. f3 {[%clk 0:02:54]}  e6 {[%clk 0:02:53]} 6. g4 {[%clk 0:02:52]}  Bg6 {[%clk 0:02:54]} 7. h4 {[%clk 0:02:52]}  h5 {[%clk 0:02:52]} 8. g5 {[%clk 0:02:53]}  Nfd7 {[%clk 0:02:52]} 9. Bd3 {[%clk 0:02:51]}  Bxd3 {[%clk 0:02:52]} 10. cxd3 {[%clk 0:02:52]}  g6 {[%clk 0:02:50]} 11. Nge2 {[%clk 0:02:47]}  Bg7 {[%clk 0:02:49]} 12. Qb3 {[%clk 0:02:39]}  b6 {[%clk 0:02:39]} 13. Bd6 {[%clk 0:02:21]}  Bf8 {[%clk 0:02:33]} 14. Bxf8 {[%clk 0:02:20]}  Kxf8 {[%clk 0:02:34]} 15. Rc1 {[%clk 0:02:12]}  Kg7 {[%clk 0:02:33]} 16. f4 {[%clk 0:01:59]}  c5 {[%clk 0:02:20]} 17. Qa4 {[%clk 0:01:53]}  a6 {[%clk 0:02:12]} 18. dxc5 {[%clk 0:01:43]}  Nxc5 {[%clk 0:02:13]} 19. Qd4+ {[%clk 0:01:43]}  Kh7 {[%clk 0:02:13]} 20. Nd1 {[%clk 0:01:20]}  Nc6 {[%clk 0:02:09]} 21. Qc3 {[%clk 0:01:21]}  Nb4 {[%clk 0:02:06]} 22. Ra1 {[%clk 0:01:10]}  Ncxd3+ {[%clk 0:01:39]} 23. Kd2 {[%clk 0:01:09]}  Rc8 {[%clk 0:01:38]} 24. Qb3 {[%clk 0:01:03]}  Rc2+ {[%clk 0:01:38]} 25. Qxc2 {[%clk 0:01:04]}  Nxc2 {[%clk 0:01:39]} 26. Kxc2 {[%clk 0:01:04]}  Nc5 {[%clk 0:01:36]} 27. Nd4 {[%clk 0:01:03]}  Qc7 {[%clk 0:01:36]} 28. Kd2 {[%clk 0:01:00]}  Ne4+ {[%clk 0:01:36]} 29. Kd3 {[%clk 0:01:00]}  Qc4# {[%clk 0:01:34]} 0-1


[Site "https://www.chess.com"]

[Event "Titled Tuesday Blitz April 4 Early 2023"]
[White "Rakhmatullaev, Almas"]
[Black "Novikov, Evgenij"]
[WhiteFideId "14205793"]
[BlackFideId "4125380"]
[WhiteElo "2221"]
[BlackElo "2242"]
[Result "1-0"]
[Round "01"]
[TimeControl "180+2"]
[Date "2023.04.04"]
[WhiteClock "0:00:37"]
[BlackClock "0:00:05"]

1. e4 {[%clk 0:02:58]}  c6 {[%clk 0:02:53]} 2. Nf3 {[%clk 0:02:57]}  d5 {[%clk 0:02:52]} 3. d3 {[%clk 0:02:58]}  g6 {[%clk 0:02:51]} 4. exd5 {[%clk 0:02:57]}  cxd5 {[%clk 0:02:50]} 5. d4 {[%clk 0:02:58]}  Bg7 {[%clk 0:02:48]} 6. Bd3 {[%clk 0:02:58]}  Nc6 {[%clk 0:02:47]} 7. c3 {[%clk 0:02:59]}  Nf6 {[%clk 0:02:47]} 8. O-O {[%clk 0:02:59]}  O-O {[%clk 0:02:46]} 9. Bf4 {[%clk 0:03:00]}  Bf5 {[%clk 0:02:43]} 10. Re1 {[%clk 0:03:00]}  a6 {[%clk 0:02:35]} 11. h3 {[%clk 0:02:55]}  Bxd3 {[%clk 0:02:35]} 12. Qxd3 {[%clk 0:02:55]}  Ne4 {[%clk 0:02:31]} 13. Nbd2 {[%clk 0:02:55]}  Nxd2 {[%clk 0:02:31]} 14. Qxd2 {[%clk 0:02:53]}  e6 {[%clk 0:02:31]} 15. Re2 {[%clk 0:02:54]}  b5 {[%clk 0:02:30]} 16. Bh6 {[%clk 0:02:54]}  Rb8 {[%clk 0:02:13]} 17. h4 {[%clk 0:02:46]}  b4 {[%clk 0:02:08]} 18. h5 {[%clk 0:02:46]}  bxc3 {[%clk 0:02:04]} 19. bxc3 {[%clk 0:02:46]}  Ne7 {[%clk 0:01:56]} 20. Bxg7 {[%clk 0:02:34]}  Kxg7 {[%clk 0:01:57]} 21. h6+ {[%clk 0:02:35]}  Kg8 {[%clk 0:01:56]} 22. Qf4 {[%clk 0:02:36]}  Nf5 {[%clk 0:01:44]} 23. g4 {[%clk 0:02:35]}  Nd6 {[%clk 0:01:44]} 24. Qe5 {[%clk 0:02:31]}  Ne8 {[%clk 0:01:27]} 25. Rae1 {[%clk 0:02:11]}  Rb6 {[%clk 0:01:27]} 26. g5 {[%clk 0:02:06]}  Qd6 {[%clk 0:01:20]} 27. Qe3 {[%clk 0:02:04]}  Qc7 {[%clk 0:01:09]} 28. Ne5 {[%clk 0:02:02]}  Nd6 {[%clk 0:01:08]} 29. Qf4 {[%clk 0:01:39]}  Qe7 {[%clk 0:00:59]} 30. Ng4 {[%clk 0:01:36]}  Nf5 {[%clk 0:00:46]} 31. Nf6+ {[%clk 0:01:36]}  Kh8 {[%clk 0:00:46]} 32. Nxd5 {[%clk 0:01:36]}  Qd6 {[%clk 0:00:43]} 33. Qxd6 {[%clk 0:01:36]}  Rxd6 {[%clk 0:00:44]} 34. Nf6 {[%clk 0:01:36]}  Nh4 {[%clk 0:00:38]} 35. Re3 {[%clk 0:01:33]}  Rb8 {[%clk 0:00:37]} 36. f4 {[%clk 0:01:28]}  Rb2 {[%clk 0:00:33]} 37. R1e2 {[%clk 0:01:27]}  Rb1+ {[%clk 0:00:28]} 38. Kf2 {[%clk 0:01:27]}  Nf5 {[%clk 0:00:28]} 39. Re5 {[%clk 0:01:27]}  Rc6 {[%clk 0:00:27]} 40. d5 {[%clk 0:01:24]}  Rxc3 {[%clk 0:00:23]} 41. dxe6 {[%clk 0:01:24]}  Rcc1 {[%clk 0:00:24]} 42. exf7 {[%clk 0:00:43]}  Rf1+ {[%clk 0:00:22]} 43. Kg2 {[%clk 0:00:43]}  Rg1+ {[%clk 0:00:23]} 44. Kf3 {[%clk 0:00:44]}  Rbf1+ {[%clk 0:00:12]} 45. Ke4 {[%clk 0:00:43]}  Nd6+ {[%clk 0:00:05]} 46. Kd5 {[%clk 0:00:43]}  Rd1+ {[%clk 0:00:05]} 47. Kc6 {[%clk 0:00:37]} 1-0


[Site "https://www.chess.com"]

[Event "Titled Tuesday Blitz April 4 Early 2023"]
[White "Makarian, Rudik"]
[Black "Gil Alba, Hector Luis"]
[WhiteFideId "44105681"]
[BlackFideId "3504670"]
[WhiteElo "2430"]
[BlackElo "2331"]
[Result "1/2-1/2"]
[Round "01"]
[TimeControl "180+2"]
[Date "2023.04.04"]
[WhiteClock "0:00:08"]
[BlackClock "0:00:32"]

1. d4 {[%clk 0:03:00]}  Nf6 {[%clk 0:02:21]} 2. c4 {[%clk 0:02:43]}  g6 {[%clk 0:02:20]} 3. Nc3 {[%clk 0:02:43]}  Bg7 {[%clk 0:02:19]} 4. e4 {[%clk 0:02:43]}  d6 {[%clk 0:02:19]} 5. Be2 {[%clk 0:02:43]}  O-O {[%clk 0:02:15]} 6. Be3 {[%clk 0:02:44]}  c5 {[%clk 0:02:14]} 7. d5 {[%clk 0:02:43]}  e6 {[%clk 0:02:14]} 8. Nf3 {[%clk 0:02:44]}  exd5 {[%clk 0:02:14]} 9. cxd5 {[%clk 0:02:44]}  b5 {[%clk 0:01:51]} 10. e5 {[%clk 0:02:44]}  dxe5 {[%clk 0:01:49]} 11. Bxc5 {[%clk 0:02:42]}  Re8 {[%clk 0:01:48]} 12. Bxb5 {[%clk 0:02:41]}  Bd7 {[%clk 0:01:48]} 13. O-O {[%clk 0:02:32]}  a6 {[%clk 0:01:44]} 14. Bxd7 {[%clk 0:02:23]}  Nbxd7 {[%clk 0:01:41]} 15. Ba3 {[%clk 0:02:17]}  Nb6 {[%clk 0:01:36]} 16. d6 {[%clk 0:02:17]}  Nc4 {[%clk 0:01:36]} 17. Qb3 {[%clk 0:01:40]}  Nxa3 {[%clk 0:01:28]} 18. Qxa3 {[%clk 0:01:39]}  Bf8 {[%clk 0:01:28]} 19. Rad1 {[%clk 0:01:32]}  Re6 {[%clk 0:01:28]} 20. Ng5 {[%clk 0:01:26]}  Rxd6 {[%clk 0:01:21]} 21. Qb3 {[%clk 0:01:26]}  Qe8 {[%clk 0:01:12]} 22. Nce4 {[%clk 0:01:22]}  Nxe4 {[%clk 0:01:10]} 23. Nxe4 {[%clk 0:01:23]}  Re6 {[%clk 0:01:10]} 24. Rd5 {[%clk 0:01:14]}  Rb8 {[%clk 0:01:07]} 25. Qh3 {[%clk 0:01:09]}  Be7 {[%clk 0:01:03]} 26. b3 {[%clk 0:00:54]}  Qc6 {[%clk 0:01:00]} 27. Qd3 {[%clk 0:00:50]}  Rc8 {[%clk 0:00:56]} 28. g4 {[%clk 0:00:40]}  Qc2 {[%clk 0:00:55]} 29. Qxc2 {[%clk 0:00:29]}  Rxc2 {[%clk 0:00:55]} 30. Rd2 {[%clk 0:00:30]}  Rxd2 {[%clk 0:00:55]} 31. Nxd2 {[%clk 0:00:31]}  f5 {[%clk 0:00:54]} 32. h3 {[%clk 0:00:29]}  e4 {[%clk 0:00:54]} 33. Nc4 {[%clk 0:00:28]}  Bc5 {[%clk 0:00:53]} 34. Kg2 {[%clk 0:00:27]}  f4 {[%clk 0:00:53]} 35. Re1 {[%clk 0:00:27]}  Kf7 {[%clk 0:00:51]} 36. Nd2 {[%clk 0:00:25]}  Bb4 {[%clk 0:00:48]} 37. Re2 {[%clk 0:00:13]}  f3+ {[%clk 0:00:46]} 38. Nxf3 {[%clk 0:00:13]}  exf3+ {[%clk 0:00:46]} 39. Kxf3 {[%clk 0:00:14]}  Rxe2 {[%clk 0:00:46]} 40. Kxe2 {[%clk 0:00:15]}  g5 {[%clk 0:00:46]} 41. Kf3 {[%clk 0:00:13]}  Ke6 {[%clk 0:00:45]} 42. Ke4 {[%clk 0:00:14]}  Bd6 {[%clk 0:00:45]} 43. f3 {[%clk 0:00:13]}  Bf4 {[%clk 0:00:45]} 44. h4 {[%clk 0:00:14]}  Bc1 {[%clk 0:00:43]} 45. hxg5 {[%clk 0:00:13]}  Bxg5 {[%clk 0:00:42]} 46. f4 {[%clk 0:00:13]}  Be7 {[%clk 0:00:42]} 47. g5 {[%clk 0:00:11]}  Bd8 {[%clk 0:00:40]} 48. b4 {[%clk 0:00:09]}  Be7 {[%clk 0:00:38]} 49. a3 {[%clk 0:00:08]}  Bd8 {[%clk 0:00:37]} 50. f5+ {[%clk 0:00:07]}  Kf7 {[%clk 0:00:38]} 51. g6+ {[%clk 0:00:06]}  hxg6 {[%clk 0:00:38]} 52. fxg6+ {[%clk 0:00:07]}  Kxg6 {[%clk 0:00:39]} 53. Kd5 {[%clk 0:00:08]}  Bg5 {[%clk 0:00:34]} 54. Kc5 {[%clk 0:00:07]}  Bc1 {[%clk 0:00:33]} 55. a4 {[%clk 0:00:07]}  Ba3 {[%clk 0:00:33]} 56. Kb6 {[%clk 0:00:06]}  Bxb4 {[%clk 0:00:32]} 57. Kxa6 {[%clk 0:00:06]}  Be1 {[%clk 0:00:32]} 58. Kb5 {[%clk 0:00:07]}  Kf6 {[%clk 0:00:32]} 59. a5 {[%clk 0:00:08]}  Bxa5 {[%clk 0:00:32]} 1/2-1/2


[Site "https://www.chess.com"]

[Event "Titled Tuesday Blitz April 4 Early 2023"]
[White "Golubev, Mikhail"]
[Black "Zakhartsov, Vladimir"]
[WhiteFideId "14100983"]
[BlackFideId "4145097"]
[WhiteElo "2374"]
[BlackElo "2497"]
[Result "0-1"]
[Round "01"]
[TimeControl "180+2"]
[Date "2023.04.04"]
[WhiteClock "0:00:05"]
[BlackClock "0:00:16"]

1. e4 {[%clk 0:02:59]}  c5 {[%clk 0:02:59]} 2. Nf3 {[%clk 0:02:59]}  d6 {[%clk 0:02:59]} 3. d4 {[%clk 0:02:59]}  cxd4 {[%clk 0:03:00]} 4. Nxd4 {[%clk 0:02:59]}  Nf6 {[%clk 0:03:01]} 5. Nc3 {[%clk 0:02:59]}  g6 {[%clk 0:03:01]} 6. Be3 {[%clk 0:02:58]}  Bg7 {[%clk 0:03:01]} 7. f3 {[%clk 0:02:58]}  h5 {[%clk 0:03:00]} 8. Qd2 {[%clk 0:02:56]}  a6 {[%clk 0:03:00]} 9. Bc4 {[%clk 0:02:56]}  Nbd7 {[%clk 0:02:59]} 10. O-O-O {[%clk 0:02:53]}  b5 {[%clk 0:02:59]} 11. Bb3 {[%clk 0:02:49]}  Bb7 {[%clk 0:02:59]} 12. Bg5 {[%clk 0:02:31]}  Rc8 {[%clk 0:02:56]} 13. Rhe1 {[%clk 0:02:27]}  Qc7 {[%clk 0:02:56]} 14. Kb1 {[%clk 0:02:21]}  Nb6 {[%clk 0:02:54]} 15. Nd5 {[%clk 0:01:33]}  Nbxd5 {[%clk 0:02:14]} 16. exd5 {[%clk 0:01:34]}  O-O {[%clk 0:02:12]} 17. Nc6 {[%clk 0:01:21]}  Bxc6 {[%clk 0:01:49]} 18. dxc6 {[%clk 0:01:22]}  a5 {[%clk 0:01:47]} 19. Bxf6 {[%clk 0:01:08]}  Bxf6 {[%clk 0:01:48]} 20. Qd3 {[%clk 0:01:08]}  Kg7 {[%clk 0:01:38]} 21. Qxb5 {[%clk 0:01:07]}  Rb8 {[%clk 0:01:38]} 22. Qa6 {[%clk 0:00:51]}  Rfc8 {[%clk 0:01:21]} 23. Rd5 {[%clk 0:00:32]}  Ra8 {[%clk 0:01:12]} 24. Qb7 {[%clk 0:00:27]}  a4 {[%clk 0:01:12]} 25. Qxc7 {[%clk 0:00:24]}  Rxc7 {[%clk 0:01:13]} 26. Bc4 {[%clk 0:00:23]}  Rxc6 {[%clk 0:01:11]} 27. b3 {[%clk 0:00:23]}  axb3 {[%clk 0:01:02]} 28. cxb3 {[%clk 0:00:20]}  e6 {[%clk 0:01:02]} 29. Rb5 {[%clk 0:00:18]}  d5 {[%clk 0:01:02]} 30. Bd3 {[%clk 0:00:17]}  Be7 {[%clk 0:00:58]} 31. a4 {[%clk 0:00:15]}  Bf6 {[%clk 0:00:45]} 32. Rb7 {[%clk 0:00:14]}  Kf8 {[%clk 0:00:43]} 33. Rc1 {[%clk 0:00:13]}  Rxc1+ {[%clk 0:00:35]} 34. Kxc1 {[%clk 0:00:14]}  Bc3 {[%clk 0:00:36]} 35. Bb5 {[%clk 0:00:13]}  e5 {[%clk 0:00:34]} 36. Bc6 {[%clk 0:00:12]}  Rd8 {[%clk 0:00:30]} 37. Rd7 {[%clk 0:00:12]}  Rxd7 {[%clk 0:00:29]} 38. Bxd7 {[%clk 0:00:13]}  Ke7 {[%clk 0:00:29]} 39. Bb5 {[%clk 0:00:12]}  f5 {[%clk 0:00:25]} 40. Kc2 {[%clk 0:00:12]}  Bb4 {[%clk 0:00:24]} 41. Bc6 {[%clk 0:00:10]}  Ke6 {[%clk 0:00:15]} 42. Be8 {[%clk 0:00:10]}  Kf6 {[%clk 0:00:15]} 43. Kd3 {[%clk 0:00:09]}  h4 {[%clk 0:00:14]} 44. Bc6 {[%clk 0:00:09]}  Ke6 {[%clk 0:00:15]} 45. Be8 {[%clk 0:00:09]}  g5 {[%clk 0:00:15]} 46. Bg6 {[%clk 0:00:08]}  e4+ {[%clk 0:00:14]} 47. Ke2 {[%clk 0:00:08]}  Ke5 {[%clk 0:00:15]} 48. g4 {[%clk 0:00:07]}  hxg3 {[%clk 0:00:13]} 49. hxg3 {[%clk 0:00:07]}  d4 {[%clk 0:00:14]} 50. g4 {[%clk 0:00:07]}  d3+ {[%clk 0:00:14]} 51. Ke3 {[%clk 0:00:06]}  f4+ {[%clk 0:00:15]} 52. Kf2 {[%clk 0:00:05]}  e3+ {[%clk 0:00:15]} 53. Kf1 {[%clk 0:00:05]}  e2+ {[%clk 0:00:16]} 0-1


[Site "https://www.chess.com"]